bitfinex-derivatives/quotes_BTCF0:USTF0_20250218
["timestamp","ask_amount","ask_price","bid_price","bid_amount"]
[1739865698722,0.1569772,95577.0,95576.0,0.209268]
[1739865699449,0.1599772,95577.0,95576.0,0.209268]
[1739865700941,0.003,95577.0,95576.0,0.209268]
[1739865701246,0.09639664,95580.0,95579.0,0.2092614]
[1739865702841,0.09939664,95580.0,95579.0,0.2092614]
[1739865703540,0.003,95580.0,95579.0,0.2092614]
[1739865704541,0.36152,95581.0,95580.0,0.2092592]
[1739865705247,0.3608,95581.0,95580.0,0.2092592]
[1739865707442,0.3638,95581.0,95580.0,0.2092592]
[1739865708349,0.3638,95581.0,95580.0,0.2102592]
[1739865709052,0.3608,95581.0,95580.0,0.2092592]
[1739865709251,0.3638,95581.0,95580.0,0.2092592]
[1739865711243,0.3638,95581.0,95580.0,0.2102592]
[1739865714146,0.3608,95581.0,95580.0,0.2092592]
[1739865714451,0.3638,95581.0,95580.0,0.001]
[1739865714641,0.46984,95581.0,95567.0,0.0329]
[1739865714846,0.2092769,95572.0,95566.0,0.32983602]
[1739865715047,0.0303,95571.0,95566.0,0.32983602]
[1739865715356,0.2092864,95568.0,95566.0,0.32983602]
[1739865715552,0.2092864,95568.0,95566.0,0.30576706]
[1739865715553,0.0313,95567.0,95566.0,0.30576706]
[1739865716956,0.0322,95570.0,95566.0,0.30576706]
[1739865717953,0.005,95567.0,95566.0,0.001]
[1739865718158,0.11104,95567.0,95566.0,0.001]
[1739865718359,0.2093028,95561.0,95559.0,0.00015694]
[1739865718557,0.0631,95560.0,95559.0,0.00015694]
[1739865719358,0.07869777,95560.0,95559.0,0.00015694]
[1739865720755,0.04709777,95560.0,95559.0,0.00015694]
[1739865720956,0.07749777,95560.0,95559.0,0.00015694]
[1739865721147,0.08149777,95560.0,95559.0,0.00015694]
[1739865721358,0.08149777,95560.0,95559.0,0.20946214]
[1739865721653,0.04999777,95560.0,95559.0,0.20946214]
[1739865721856,0.01959777,95560.0,95559.0,0.20946214]
[1739865722851,0.01959777,95560.0,95559.0,0.15702235]
[1739865728864,0.01959777,95560.0,95550.0,0.00015694]
[1739865729058,0.01959777,95560.0,95556.0,0.20931]
[1739865729257,0.01959777,95560.0,95559.0,0.2093052]
[1739865730061,0.01959777,95560.0,95550.0,0.00015694]
[1739865730261,0.3608,95556.0,95550.0,0.00015694]
[1739865730463,0.0307,95555.0,95550.0,0.00015694]
[1739865731469,0.0621,95555.0,95554.0,0.2093161]
[1739865732255,0.0631,95555.0,95554.0,0.2093161]
[1739865733457,0.2093182,95554.0,95550.0,0.00015694]
[1739865734060,0.2093227,95551.0,95550.0,0.00015694]
[1739865735562,0.2143227,95551.0,95550.0,0.00015694]
[1739865736167,0.2153227,95551.0,95550.0,0.00015694]
[1739865736866,0.2153227,95551.0,95550.0,0.00011636]
[1739865742575,0.006,95551.0,95550.0,0.00011636]
[1739865743385,0.7276,95551.0,95550.0,0.00011636]
[1739865743571,0.9369227,95551.0,95550.0,0.00011636]
[1739865744474,0.2093302,95548.0,95543.0,0.08329899]
[1739865744676,0.2093302,95548.0,95540.0,0.0305]
[1739865744974,0.2093316,95547.0,95543.0,0.20934]
[1739865745178,0.2093358,95546.0,95540.0,0.2398467]
[1739865745372,0.3608,95541.0,95540.0,0.2398467]
[1739865746572,0.3608,95541.0,95539.0,0.00156999]
[1739865746874,0.36613908,95541.0,95532.0,0.0305]
[1739865747077,0.36613908,95541.0,95515.0,0.00157048]
[1739865747078,0.3608,95533.0,95525.0,0.0325]
[1739865747276,0.3608,95526.0,95484.0,0.3608]
[1739865747477,0.0341,95532.0,95449.0,0.00056]
[1739865747478,0.0052149,95450.0,95449.0,0.00056]
[1739865747679,0.3660149,95450.0,95443.0,0.45623534]
[1739865747875,0.3608,95444.0,95443.0,0.41487903]
[1739865748272,0.3608,95444.0,95443.0,0.62387863]
[1739865748481,0.2999,95444.0,95443.0,0.62387863]
[1739865748677,0.2999,95444.0,95443.0,0.41431903]
[1739865749675,0.2989,95444.0,95443.0,0.41431903]
[1739865750080,0.3039,95444.0,95443.0,0.41431903]
[1739865750386,0.3049,95444.0,95443.0,0.41431903]
[1739865750679,0.2999,95444.0,95443.0,0.41431903]
[1739865750875,0.3029,95444.0,95443.0,0.41431903]
[1739865751677,0.3039,95444.0,95443.0,0.41431903]
[1739865751882,0.3039,95444.0,95438.0,0.2411704]
[1739865751883,0.65287186,95444.0,95438.0,0.2411704]
[1739865752783,0.0419,95443.0,95438.0,0.2411704]
[1739865753683,0.0419,95443.0,95438.0,0.0316]
[1739865754188,0.0439,95443.0,95438.0,0.0316]
[1739865754381,0.0449,95443.0,95438.0,0.0316]
[1739865754580,0.0449,95443.0,95438.0,0.2411685]
[1739865754777,0.0449,95443.0,95438.0,0.0316]
[1739865754974,0.0449,95443.0,95440.0,0.2095647]
[1739865755179,0.0449,95443.0,95442.0,0.2095618]
[1739865755589,0.003,95443.0,95442.0,0.2095618]
[1739865755888,0.004,95443.0,95442.0,0.2095618]
[1739865756787,0.006,95443.0,95442.0,0.2095618]
[1739865756992,0.004,95443.0,95442.0,0.2095618]
[1739865757193,0.006,95443.0,95442.0,0.2095618]
[1739865757383,0.002,95443.0,95442.0,0.2095618]
[1739865757692,0.005,95443.0,95442.0,0.2095618]
[1739865758289,0.006,95443.0,95442.0,0.2095618]
[1739865758686,0.0233,95443.0,95442.0,0.2095618]
[1739865759286,0.0213,95443.0,95438.0,0.02088964]
[1739865759588,0.0233,95443.0,95442.0,0.2095618]
[1739865761294,0.0233,95443.0,95431.0,0.0523963]
[1739865761594,0.3608,95432.0,95431.0,0.2619822]
[1739865762702,0.0233,95443.0,95442.0,0.2095618]
[1739865762891,0.0233,95443.0,95442.0,0.5703618]
[1739865763295,0.0213,95443.0,95442.0,0.5703618]
[1739865763498,0.0173,95443.0,95442.0,0.5703618]
[1739865763901,0.0173,95443.0,95431.0,0.3624]
[1739865764103,0.0173,95443.0,95442.0,0.2105618]
[1739865764404,0.0203,95443.0,95442.0,0.2105618]
[1739865764611,0.0223,95443.0,95442.0,0.2095618]
[1739865765106,0.0193,95443.0,95442.0,0.2095618]
[1739865765295,0.0243,95443.0,95442.0,0.2095618]
[1739865766797,0.0203,95443.0,95442.0,0.2095618]
[1739865767100,0.0223,95443.0,95442.0,0.2095618]
[1739865767515,0.02371,95443.0,95442.0,0.2095618]
[1739865767702,0.02771,95443.0,95442.0,0.2095618]
[1739865768308,0.02371,95443.0,95442.0,0.2095618]
[1739865768508,0.02671,95443.0,95442.0,0.2095618]
[1739865769209,0.02571,95443.0,95442.0,0.2095618]
[1739865769803,0.02371,95443.0,95442.0,0.2095618]
[1739865770002,0.02771,95443.0,95442.0,0.2095618]
[1739865770611,0.02371,95443.0,95442.0,0.2095618]
[1739865770814,0.03609,95443.0,95442.0,0.2095618]
[1739865771616,0.03509,95443.0,95442.0,0.2095618]
[1739865773712,0.03209,95443.0,95442.0,0.2095618]
[1739865773910,0.03709,95443.0,95442.0,0.2095618]
[1739865774114,0.03709,95443.0,95442.0,0.5703618]
[1739865774413,0.03709,95443.0,95442.0,0.2095618]
[1739865774610,0.04247,95443.0,95442.0,0.2095618]
[1739865775801,0.09345023,95443.0,95442.0,0.2095618]
[1739865776006,0.13235023,95443.0,95442.0,0.2095618]
[1739865776204,0.13235023,95443.0,95437.0,0.90449807]
[1739865776515,0.13235023,95443.0,95442.0,0.2095618]
[1739865777116,0.13135023,95443.0,95442.0,0.2095618]
[1739865779913,0.13135023,95443.0,95442.0,0.2105618]
[1739865780510,0.13235023,95443.0,95442.0,0.2095618]
[1739865780710,0.13435023,95443.0,95442.0,0.2095618]
[1739865781216,0.13335023,95443.0,95442.0,0.2095618]
[1739865782422,0.13235023,95443.0,95442.0,0.2095618]
[1739865782719,0.352892,95443.0,95442.0,0.2095618]
[1739865783112,0.351892,95443.0,95442.0,0.2095618]
[1739865783319,0.352892,95443.0,95442.0,0.2105618]
[1739865783819,0.351892,95443.0,95442.0,0.2105618]
[1739865784019,0.353892,95443.0,95442.0,0.2095618]
[1739865785220,0.311992,95443.0,95442.0,0.2095618]
[1739865785420,0.310992,95443.0,95442.0,0.2245878]
[1739865786317,0.309992,95443.0,95442.0,0.1826778]
[1739865787118,0.309992,95443.0,95442.0,0.1836778]
[1739865787321,0.309992,95443.0,95442.0,0.1696518]
[1739865787522,0.309992,95443.0,95442.0,0.1686518]
[1739865787824,0.309992,95443.0,95442.0,0.1696518]
[1739865790017,0.309992,95443.0,95442.0,0.18445558]
[1739865794017,4e-08,95443.0,95440.0,0.19055578]
[1739865794317,4e-08,95443.0,95442.0,0.2105618]
[1739865794717,4e-08,95447.0,95446.0,0.209553]
[1739865795121,0.15139391,95448.0,95447.0,0.2095508]
[1739865795930,0.01647,95448.0,95447.0,0.2095508]
[1739865796426,0.01747,95448.0,95447.0,0.2095508]
[1739865797828,0.04787,95448.0,95447.0,0.1621408]
[1739865799027,0.04787,95448.0,95437.0,0.90449807]
[1739865799324,0.10344658,95447.0,95446.0,0.209553]
[1739865799531,0.04787,95448.0,95447.0,0.2095508]
[1739865800330,0.04687,95448.0,95447.0,0.2095508]
[1739865801230,0.04787,95448.0,95447.0,0.2095508]
[1739865802222,0.04887,95448.0,95447.0,0.2095508]
[1739865802925,0.01847,95448.0,95447.0,0.2095508]
[1739865803328,0.11372919,95448.0,95447.0,0.2095508]
[1739865803532,0.11272919,95448.0,95447.0,0.2095508]
[1739865806123,0.1001391,95448.0,95447.0,0.2095508]
[1739865810628,0.01747,95448.0,95447.0,0.2095508]
[1739865810829,0.32910246,95450.0,95449.0,0.2095464]
[1739865811029,0.32838246,95450.0,95449.0,0.2095464]
[1739865812030,0.33038246,95450.0,95449.0,0.2095464]
[1739865812231,0.33138246,95450.0,95449.0,0.2095464]
[1739865814037,0.36138246,95450.0,95449.0,0.2095464]
[1739865814632,0.26070398,95450.0,95449.0,0.2095464]
[1739865817039,0.11515328,95450.0,95449.0,0.2095464]
[1739865817243,0.00838,95451.0,95450.0,0.2095442]
[1739865818543,0.01138,95451.0,95450.0,0.2095442]
[1739865826645,0.05328,95451.0,95450.0,0.2095442]
[1739865827045,0.05128,95451.0,95450.0,0.2095442]
[1739865827246,0.05128,95451.0,95450.0,0.2115442]
[1739865827642,0.05028,95451.0,95450.0,0.2115442]
[1739865827848,0.05028,95451.0,95450.0,0.2135442]
[1739865830142,0.13149842,95451.0,95450.0,0.2135442]
[1739865835159,0.01243189,95454.0,95453.0,0.2095376]
[1739865836259,0.01243189,95454.0,95453.0,1.1240176]
[1739865837546,0.01243189,95454.0,95453.0,1.1250176]
[1739865838252,0.04263189,95454.0,95453.0,1.1250176]
[1739865840252,0.09360163,95454.0,95453.0,1.1250176]
[1739865843561,0.18316583,95454.0,95453.0,1.1250176]
[1739865847064,0.16539611,95454.0,95453.0,1.1250176]
[1739865850468,0.04263189,95454.0,95453.0,1.1250176]
[1739865851365,0.04263189,95454.0,95453.0,0.91548]
[1739865852653,0.04463189,95454.0,95453.0,0.91348]
[1739865852861,0.04763189,95454.0,95453.0,0.91348]
[1739865853360,0.22926544,95455.0,95453.0,0.91348]
[1739865853560,0.1617525,95454.0,95453.0,0.91348]
[1739865855268,0.1617525,95454.0,95453.0,0.91448]
[1739865855464,0.1627525,95454.0,95453.0,0.91448]
[1739865855765,0.1627525,95454.0,95453.0,0.91348]
[1739865855967,0.1637525,95454.0,95453.0,0.91348]
[1739865856459,0.2250525,95454.0,95453.0,0.91348]
[1739865857167,0.2240525,95454.0,95453.0,0.91348]
[1739865857359,0.0613,95454.0,95453.0,1.1230176]
[1739865858065,0.0613,95454.0,95453.0,1.1240176]
[1739865858662,0.0613,95454.0,95453.0,1.1250176]
[1739865859061,0.0613,95454.0,95453.0,1.1240176]
[1739865861068,0.0313,95454.0,95453.0,1.1230176]
[1739865861365,0.00283,95455.0,95454.0,0.2095354]
[1739865861566,0.00283,95455.0,95454.0,0.2403354]
[1739865862870,0.58115214,95456.0,95455.0,0.2095332]
[1739865863173,0.58047214,95456.0,95455.0,0.22837714]
[1739865864068,0.58331214,95456.0,95455.0,0.22837714]
[1739865865576,0.44068918,95456.0,95455.0,0.22837714]
[1739865866774,0.07988918,95456.0,95455.0,0.22837714]
[1739865867175,0.07988918,95456.0,95455.0,0.2095332]
[1739865870375,0.07988918,95456.0,95455.0,0.22841246]
[1739865870975,0.07704918,95456.0,95455.0,0.22841246]
[1739865871675,0.12801718,95456.0,95455.0,0.22841246]
[1739865872177,0.12801718,95456.0,95455.0,0.22556246]
[1739865874378,0.57971257,95462.0,95455.0,0.01887926]
[1739865874683,0.57903257,95462.0,95461.0,0.2095201]
[1739865874981,0.35951758,95462.0,95461.0,0.2095201]
[1739865875482,0.35951758,95462.0,95461.0,0.22778037]
[1739865875984,0.35951758,95462.0,95461.0,0.2095201]
[1739865877474,0.36051758,95462.0,95461.0,0.2095201]
[1739865877867,0.36051758,95462.0,95461.0,0.22810665]
[1739865879381,0.36051758,95462.0,95461.0,1.14154665]
[1739865886386,0.35951758,95462.0,95461.0,1.14154665]
[1739865886686,0.35951758,95462.0,95461.0,1.14254665]
[1739865886877,0.35951758,95462.0,95461.0,1.14354665]
[1739865887186,0.35951758,95462.0,95461.0,1.14254665]
[1739865887891,0.35951758,95462.0,95461.0,1.14154665]
[1739865889286,0.43247182,95462.0,95461.0,1.14154665]
[1739865889474,0.43247182,95462.0,95461.0,1.14254665]
[1739865889680,0.43247182,95462.0,95461.0,1.14354665]
[1739865890180,0.43247182,95462.0,95461.0,1.14254665]
[1739865890383,0.43247182,95462.0,95461.0,1.14154665]
[1739865893388,0.07295424,95462.0,95461.0,1.14154665]
[1739865893784,0.07295424,95462.0,95461.0,1.14254665]
[1739865894091,0.12392123,95462.0,95461.0,1.14254665]
[1739865894589,0.12392123,95462.0,95461.0,1.14354665]
[1739865896092,0.12392123,95462.0,95461.0,1.14254665]
[1739865896480,0.12392123,95462.0,95461.0,1.14154665]
[1739865897288,0.07295424,95462.0,95461.0,1.14154665]
[1739865899887,0.07295424,95462.0,95461.0,1.14254665]
[1739865900088,0.07295424,95462.0,95461.0,1.14354665]
[1739865900284,0.07295424,95462.0,95461.0,1.1249601]
[1739865900791,0.07295424,95462.0,95461.0,1.1239601]
[1739865900993,0.43375424,95462.0,95461.0,1.1239601]
[1739865901789,0.43375424,95462.0,95461.0,1.14110666]
[1739865902194,0.43375424,95462.0,95461.0,1.14010666]
[1739865902394,0.07295424,95462.0,95461.0,1.14010666]
[1739865902889,0.07295424,95462.0,95461.0,1.14110666]
[1739865903096,0.07295424,95462.0,95461.0,1.14210666]
[1739865903487,0.07295424,95462.0,95461.0,1.14110666]
[1739865904089,0.07295424,95462.0,95461.0,1.14210666]
[1739865904292,0.07295424,95462.0,95461.0,1.14110666]
[1739865905390,0.07295424,95462.0,95461.0,1.1239601]
[1739865906283,0.07295424,95462.0,95461.0,1.1249601]
[1739865906483,0.07295424,95462.0,95461.0,1.1239601]
[1739865906900,0.07295424,95462.0,95461.0,1.1229601]
[1739865908091,0.07295424,95462.0,95454.0,0.2095354]
[1739865908400,0.3608,95455.0,95454.0,0.2095354]
[1739865908993,0.3608,95455.0,95452.0,0.00015715]
[1739865909194,0.3608,95455.0,95454.0,0.2095354]
[1739865910990,0.37780483,95455.0,95454.0,0.2095354]
[1739865911697,0.2095354,95454.0,95452.0,0.00015715]
[1739865912798,0.2095662,95440.0,95439.0,0.914]
[1739865913096,0.5693662,95440.0,95439.0,0.91344]
[1739865913694,0.5683662,95440.0,95439.0,0.91344]
[1739865914091,0.5683662,95440.0,95439.0,0.91544]
[1739865914287,0.5683662,95440.0,95439.0,0.91844]
[1739865917499,0.69228743,95440.0,95439.0,0.91844]
[1739865918000,0.69750806,95440.0,95439.0,0.91844]
[1739865918513,0.2095993,95425.0,95424.0,0.2095992]
[1739865918702,0.5703993,95425.0,95424.0,0.2095992]
[1739865918901,0.3608,95425.0,95424.0,0.2095992]
[1739865919808,0.37765239,95425.0,95424.0,0.2165992]
[1739865920911,0.58725149,95425.0,95424.0,0.2165992]
[1739865921210,0.58725149,95425.0,95424.0,0.007]
[1739865922203,0.71117272,95425.0,95424.0,0.007]
[1739865922796,0.71117272,95425.0,95424.0,0.004]
[1739865922997,0.71117272,95425.0,95424.0,0.001]
[1739865923198,0.71117272,95425.0,95424.0,0.003]
[1739865923401,0.71117272,95425.0,95424.0,0.2126013]
[1739865924816,0.2096321,95410.0,95409.0,0.9142]
[1739865925010,0.3608,95410.0,95409.0,1.1232743]
[1739865926008,0.3608,95410.0,95409.0,1.1262743]
[1739865926515,0.3608,95410.0,95409.0,1.1292743]
[1739865927515,0.37804305,95410.0,95409.0,0.006]
[1739865927707,0.37804305,95410.0,95390.0,0.0861]
[1739865927903,0.3608,95398.0,95390.0,0.0861]
[1739865928116,0.0882,95397.0,95390.0,0.0861]
[1739865928309,0.0882,95397.0,95396.0,0.2096628]
[1739865929719,0.0415,95397.0,95396.0,0.2096628]
[1739865930218,0.0415,95397.0,95396.0,0.2126628]
[1739865930918,0.0415,95397.0,95396.0,0.2156628]
[1739865932821,0.3608,95398.0,95397.0,0.2096606]
[1739865934112,0.3608,95398.0,95397.0,0.2126606]
[1739865935323,0.3608,95398.0,95397.0,0.2156606]
[1739865936519,0.15554621,95402.0,95401.0,0.2096518]
[1739865938424,0.15554621,95402.0,95401.0,0.2106518]
[1739865938616,0.15554621,95402.0,95401.0,0.2116518]
[1739865941213,0.15554621,95404.0,95403.0,0.2096474]
[1739865942516,0.15554621,95404.0,95403.0,0.2116474]
[1739865945822,0.05099869,95405.0,95404.0,0.2096452]
[1739865948130,0.12950639,95405.0,95404.0,0.2096452]
[1739865948427,0.12950639,95405.0,95404.0,0.2106452]
[1739865950535,0.17720639,95405.0,95404.0,0.2106452]
[1739865959425,0.53800639,95405.0,95404.0,0.2106452]
[1739865961338,0.74764939,95405.0,95404.0,0.2106452]
[1739865961736,0.53800639,95405.0,95381.0,0.01571333]
[1739865962049,0.53800639,95405.0,95394.0,0.2096668]
[1739865962050,0.06804273,95398.0,95394.0,0.2096668]
[1739865962242,0.2096571,95399.0,95394.0,0.13752497]
[1739865962644,0.209659,95398.0,95394.0,0.13752497]
[1739865962832,0.06804273,95400.0,95387.0,1.1242817]
[1739865963137,0.3608,95395.0,95387.0,0.2102417]
[1739865963337,0.2096695,95393.0,95388.0,0.006]
[1739865963540,0.00533815,95389.0,95372.0,0.2097155]
[1739865963741,0.3608,95375.0,95374.0,0.0471]
[1739865963933,0.3608,95375.0,95374.0,0.06253198]
[1739865964128,0.3608,95375.0,95374.0,0.01543198]
[1739865964440,0.3548,95375.0,95373.0,0.2097112]
[1739865964936,0.3548,95375.0,95365.0,0.0471]
[1739865965143,0.42284273,95375.0,95374.0,0.004]
[1739865965333,0.3548,95375.0,95374.0,0.004]
[1739865966140,0.3548,95375.0,95374.0,0.002]
[1739865966344,0.37030114,95375.0,95374.0,0.002]
[1739865966532,0.37030114,95375.0,95373.0,0.003]
[1739865966533,0.59514789,95375.0,95373.0,0.004]
[1739865967235,0.59514789,95375.0,95373.0,0.213712]
[1739865967436,0.59514789,95375.0,95373.0,0.004]
[1739865967742,0.59514789,95375.0,95374.0,0.002]
[1739865968240,0.59514789,95375.0,95365.0,0.0471]
[1739865968441,0.69991326,95375.0,95365.0,0.0471]
[1739865968640,0.69991326,95375.0,95371.0,0.2097165]
[1739865968839,0.59614789,95375.0,95371.0,0.2097165]
[1739865969046,0.59514789,95375.0,95371.0,0.2097165]
[1739865969234,0.59914789,95375.0,95372.0,0.2097143]
[1739865969635,0.60214789,95375.0,95372.0,0.2097143]
[1739865969841,0.60214789,95375.0,95365.0,0.0471]
[1739865970031,0.80967863,95375.0,95366.0,0.2097268]
[1739865970238,0.80967863,95375.0,95367.0,0.2097252]
[1739865970434,0.3608,95371.0,95358.0,0.00157302]
[1739865970748,0.3608,95359.0,95358.0,0.00157302]
[1739865972037,0.37682294,95359.0,95358.0,0.00157302]
[1739865972243,0.37682294,95359.0,95358.0,0.00357302]
[1739865973342,0.37682294,95359.0,95358.0,0.00457302]
[1739865975350,0.47162294,95359.0,95358.0,0.00457302]
[1739865976146,0.60112933,95359.0,95345.0,0.0486]
[1739865976448,0.3608,95349.0,95345.0,0.0486]
[1739865977041,0.0506,95348.0,95346.0,0.2097728]
[1739865978449,0.36348,95349.0,95345.0,0.0486]
[1739865978752,0.3628,95349.0,95348.0,0.2097684]
[1739865979349,0.3608,95349.0,95348.0,0.2097684]
[1739865981248,0.3608,95349.0,95348.0,0.2107684]
[1739865981452,0.3608,95349.0,95345.0,0.03889508]
[1739865981658,0.3608,95349.0,95348.0,0.2097684]
[1739865983255,0.3618,95349.0,95348.0,0.2097684]
[1739865983556,0.4128272,95349.0,95348.0,0.2097684]
[1739865984156,0.4138272,95349.0,95348.0,0.2097684]
[1739865985351,0.4148272,95349.0,95348.0,0.2097684]
[1739865985856,0.4128272,95349.0,95348.0,0.2097684]
[1739865986057,0.4138272,95349.0,95348.0,0.2097684]
[1739865986355,0.4158272,95349.0,95348.0,0.2097684]
[1739865987147,0.4168272,95349.0,95348.0,0.2097684]
[1739865987548,0.25245382,95349.0,95348.0,0.2097684]
[1739865987756,0.25345382,95349.0,95348.0,0.2097684]
[1739865989460,0.25445382,95349.0,95348.0,0.2097684]
[1739865990150,0.25545382,95349.0,95348.0,0.2097684]
[1739865990559,0.36526699,95349.0,95348.0,0.2097684]
[1739865991154,0.36126699,95349.0,95348.0,0.2097684]
[1739865991361,0.36526699,95349.0,95348.0,0.2097684]
[1739865994758,0.36126699,95349.0,95348.0,0.2097684]
[1739865995066,0.36226699,95349.0,95348.0,0.2097684]
[1739865995559,0.35826699,95349.0,95348.0,0.2097684]
[1739865995765,0.36026699,95349.0,95348.0,0.2097684]
[1739865996061,0.3602179,95349.0,95348.0,0.2097684]
[1739865996263,0.3582179,95349.0,95348.0,0.2097684]
[1739865996458,0.3612179,95349.0,95348.0,0.2097684]
[1739865997260,0.3592179,95349.0,95348.0,0.2097684]
[1739865997759,0.3602179,95349.0,95348.0,0.2097684]
[1739865998166,0.16384037,95349.0,95348.0,0.3608]
[1739865998363,0.16284037,95349.0,95348.0,0.5705684]
[1739865998563,0.01602294,95359.0,95358.0,0.2097464]
[1739865998759,0.06809785,95368.0,95350.0,0.0956]
[1739865998966,0.06809785,95360.0,95359.0,0.2097442]
[1739865999166,0.06809785,95369.0,95368.0,0.2097244]
[1739865999366,0.3608,95371.0,95356.0,0.0507]
[1739865999667,0.06809785,95366.0,95356.0,0.0507]
[1739865999869,0.06809785,95366.0,95365.0,0.209731]
[1739866000058,0.3608,95371.0,95370.0,0.20972]
[1739866000263,0.37617631,95371.0,95370.0,0.20972]
[1739866000569,0.38017631,95371.0,95370.0,0.20972]
[1739866000867,0.38017631,95371.0,95370.0,0.13755337]
[1739866001061,0.37617631,95371.0,95370.0,0.13755337]
[1739866001263,0.38317631,95371.0,95370.0,0.13855337]
[1739866001665,0.59289411,95371.0,95370.0,0.001]
[1739866002465,0.59989411,95371.0,95370.0,0.001]
[1739866003769,0.71124132,95371.0,95370.0,0.001]
[1739866011566,0.92796865,95371.0,95370.0,0.001]
[1739866012074,0.92796865,95371.0,95370.0,0.00041806]
[1739866017874,0.92796865,95371.0,95370.0,0.21013806]
[1739866018382,0.71825085,95371.0,95370.0,0.21013806]
[1739866018572,0.76927356,95371.0,95370.0,0.21013806]
[1739866018979,0.75389725,95371.0,95370.0,0.21013806]
[1739866019282,0.74989725,95371.0,95370.0,0.21013806]
[1739866020473,0.74289725,95371.0,95370.0,0.20972]
[1739866020678,0.74589725,95371.0,95370.0,0.20972]
[1739866021281,0.38509725,95371.0,95370.0,0.20972]
[1739866021584,0.38209725,95371.0,95370.0,0.20972]
[1739866021785,0.38409725,95371.0,95370.0,0.20972]
[1739866022480,0.26070264,95371.0,95370.0,0.20972]
[1739866022686,0.25770264,95371.0,95370.0,0.20972]
[1739866022887,0.25970264,95371.0,95370.0,0.20972]
[1739866023192,0.26170264,95371.0,95370.0,0.20972]
[1739866023490,0.25870264,95371.0,95370.0,0.20972]
[1739866023791,0.25770264,95371.0,95370.0,0.20972]
[1739866023991,0.25870264,95371.0,95370.0,0.20972]
[1739866024590,0.25670264,95371.0,95370.0,0.20972]
[1739866025384,0.003,95371.0,95370.0,0.20972]
[1739866025583,0.003,95371.0,95370.0,0.32064]
[1739866026790,0.004,95371.0,95370.0,0.32064]
[1739866027392,0.002,95371.0,95370.0,0.32064]
[1739866027687,0.004,95371.0,95370.0,0.32064]
[1739866028784,0.002,95371.0,95370.0,0.32064]
[1739866028985,0.004,95371.0,95370.0,0.32064]
[1739866029792,0.004,95371.0,95370.0,0.33560696]
[1739866029995,0.004,95371.0,95370.0,0.22468696]
[1739866030386,0.14835543,95371.0,95370.0,0.22468696]
[1739866032691,0.14835543,95371.0,95370.0,0.20972]
[1739866037487,0.05502271,95371.0,95370.0,0.20972]
[1739866037688,0.21892782,95374.0,95373.0,0.2097134]
[1739866039084,0.22192782,95374.0,95373.0,0.2097134]
[1739866040095,0.22492782,95374.0,95373.0,0.2097134]
[1739866041396,0.00615724,95374.0,95373.0,0.2097134]
[1739866045300,0.1622618,95374.0,95373.0,0.2097134]
[1739866048802,0.00615724,95374.0,95373.0,0.2097134]
[1739866050599,0.00315724,95374.0,95373.0,0.2117134]
[1739866050796,0.00015724,95374.0,95373.0,0.2147134]
[1739866051509,0.00015724,95374.0,95373.0,0.2117134]
[1739866051707,0.00015724,95374.0,95373.0,0.2137134]
[1739866052114,0.18739956,95379.0,95378.0,0.2097024]
[1739866052410,0.18089741,95385.0,95384.0,0.2096892]
[1739866054612,0.00688519,95385.0,95384.0,0.2096892]
[1739866054811,0.00688519,95385.0,95384.0,0.2116892]
[1739866055507,0.00788519,95385.0,95384.0,0.2096892]
[1739866055714,0.00788519,95385.0,95384.0,0.2106892]
[1739866056011,0.05789211,95385.0,95384.0,0.2116892]
[1739866056607,0.05789211,95385.0,95384.0,0.2106892]
[1739866057916,0.05789211,95385.0,95384.0,0.2096892]
[1739866059522,0.05889211,95385.0,95384.0,0.2096892]
[1739866061710,0.05889211,95385.0,95384.0,0.2106892]
[1739866062220,0.05989211,95385.0,95384.0,0.2096892]
[1739866063319,0.06089211,95385.0,95384.0,0.2096892]
[1739866064024,0.05989211,95385.0,95384.0,0.2096892]
[1739866065219,0.00889211,95385.0,95384.0,0.2096892]
[1739866067823,0.00789211,95385.0,95384.0,0.2096892]
[1739866068026,0.00889211,95385.0,95384.0,0.2096892]
[1739866068524,0.00989211,95385.0,95384.0,0.2096892]
[1739866068915,0.00889211,95385.0,95384.0,0.2096892]
[1739866073425,0.09708346,95385.0,95384.0,0.2096892]
[1739866076623,0.00889211,95385.0,95384.0,0.2116892]
[1739866076824,0.00789211,95385.0,95384.0,0.2146892]
[1739866078131,0.00789211,95385.0,95384.0,0.2126892]
[1739866078428,0.00789211,95385.0,95384.0,0.2146892]
[1739866079022,0.00789211,95385.0,95384.0,0.2116892]
[1739866079223,0.00789211,95385.0,95384.0,0.2136892]
[1739866079930,0.09140871,95393.0,95384.0,0.004]
[1739866080127,0.07676225,95393.0,95392.0,0.2096716]
[1739866081327,0.07676225,95393.0,95392.0,0.22315768]
[1739866081526,0.07676225,95393.0,95392.0,0.2096716]
[1739866082730,0.07776225,95393.0,95392.0,0.2096716]
[1739866082925,0.07876225,95393.0,95392.0,0.2096716]
[1739866083125,0.12976603,95393.0,95392.0,0.2096716]
[1739866083325,0.49056603,95393.0,95379.0,0.1036]
[1739866083521,0.3608,95383.0,95358.0,0.3608]
[1739866083720,0.3608,95383.0,95353.0,0.36237287]
[1739866083721,0.3608,95377.0,95369.0,0.00056]
[1739866083932,0.052427,95376.0,95353.0,0.00157287]
[1739866084134,0.3608,95358.0,95353.0,0.00157287]
[1739866084430,0.37460003,95358.0,95353.0,0.00157287]
[1739866084731,0.47560003,95358.0,95355.0,0.2097523]
[1739866085127,0.47560003,95358.0,95353.0,0.00157287]
[1739866085427,0.47560003,95358.0,95356.0,0.2097494]
[1739866085823,0.47560003,95358.0,95357.0,0.19349949]
[1739866086432,0.47260003,95358.0,95357.0,0.19349949]
[1739866087136,0.60036606,95358.0,95357.0,0.005]
[1739866087335,0.12776603,95358.0,95357.0,0.005]
[1739866088236,0.12776603,95358.0,95356.0,0.2097505]
[1739866088622,0.12776603,95358.0,95357.0,0.004]
[1739866089333,0.12776603,95358.0,95356.0,0.2097505]
[1739866089527,0.12776603,95358.0,95357.0,0.003]
[1739866089933,0.18717101,95360.0,95358.0,0.2097464]
[1739866091338,0.18717101,95360.0,95359.0,0.2097442]
[1739866092930,0.23817479,95362.0,95359.0,0.2097442]
[1739866093132,0.23817479,95362.0,95361.0,0.2097398]
[1739866094633,0.23917479,95362.0,95361.0,0.2097398]
[1739866095138,0.23817479,95362.0,95361.0,0.2097398]
[1739866095337,0.23917479,95362.0,95361.0,0.22335012]
[1739866095537,0.05200378,95362.0,95361.0,0.2097398]
[1739866096039,0.05300378,95362.0,95361.0,0.2097398]
[1739866096733,0.05200378,95362.0,95361.0,0.2097398]